fUST/lending_fUST_20241223
["ID","MTS","AMOUNT","RATE_DAILY","PERIOD"]
[346321658,1734889846762,-151.0,0.00013698,2]
[346321660,1734889846771,-500.0,0.00013698,2]
[346321662,1734889846780,-701.09,0.00013698,2]
[346321665,1734889846791,-500.0,0.00013698,2]
[346321667,1734889846800,-1151.12,0.00013698,2]
[346321669,1734889846809,-151.0,0.00013698,2]
[346321671,1734889846819,-500.0,0.00013698,2]
[346321673,1734889846827,-151.0,0.00013698,2]
[346321674,1734889846836,-151.0,0.00013698,2]
[346321676,1734889846846,-151.0,0.00013698,2]
[346321679,1734889846855,-500.0,0.00013698,2]
[346321680,1734889846864,-500.0,0.00013698,2]
[346321682,1734889846874,-151.0,0.00013698,2]
[346321684,1734889846883,-151.0,0.00013698,2]
[346321687,1734889846893,-500.0,0.00013698,2]
[346321689,1734889846902,-151.0,0.00013698,2]
[346321690,1734889846912,-267.528574,0.00013698,2]
[346321692,1734889846921,-500.0,0.00013698,2]
[346321694,1734889846932,-151.0,0.00013698,2]
[346321696,1734889846941,-151.0,0.00013698,2]
[346321698,1734889846951,-151.0,0.00013698,2]
[346321700,1734889846960,-151.0,0.00013698,2]
[346321702,1734889846969,-500.0,0.00013698,2]
[346321704,1734889846978,-151.0,0.00013698,2]
[346321706,1734889846987,-500.0,0.00013698,2]
[346321708,1734889846996,-586.24,0.00013698,2]
[346321710,1734889847006,-151.0,0.00013698,2]
[346321712,1734889847016,-168.190042,0.00013698,2]
[346321714,1734889847025,-1160.34,0.00013698,2]
[346321716,1734889847033,-500.0,0.00013698,2]
[346321718,1734889847043,-540.68,0.00013698,2]
[346321720,1734889847052,-500.0,0.00013698,2]
[346321722,1734889847062,-1509.34,0.00013698,2]
[346321724,1734889847072,-752.91,0.00013698,2]
[346321726,1734889847081,-500.0,0.00013698,2]
[346321727,1734889847090,-503.73,0.00013698,2]
[346321728,1734889847099,-500.0,0.00013698,2]
[346321729,1734889847108,-151.0,0.00013698,2]
[346321730,1734889847117,-151.0,0.00013698,2]
[346321731,1734889847127,-151.0,0.00013698,2]
[346321732,1734889847136,-500.0,0.00013698,2]
[346321733,1734889847145,-151.0,0.00013698,2]
[346321734,1734889847155,-151.0,0.00013698,2]
[346321735,1734889847164,-151.0,0.00013698,2]
[346321736,1734889847174,-151.0,0.00013698,2]
[346321737,1734889847185,-166.533,0.00013698,2]
[346321738,1734889847194,-151.0,0.00013698,2]
[346321739,1734889847205,-500.0,0.00013698,2]
[346321740,1734889847216,-151.0,0.00013698,2]
[346321741,1734889847225,-151.0,0.00013698,2]
[346321742,1734889847234,-151.0,0.00013698,2]
[346321743,1734889847244,-151.0,0.00013698,2]
[346321745,1734889847254,-1150.27,0.00013698,2]
[346321746,1734889847263,-554.01,0.00013698,2]
[346321749,1734889847272,-151.0,0.00013698,2]
[346321750,1734889847283,-151.0,0.00013698,2]
[346321753,1734889847293,-151.0,0.00013698,2]
[346321755,1734889847303,-736.01,0.00013698,2]
[346321757,1734889847312,-500.0,0.00013698,2]
[346321759,1734889847322,-500.0,0.00013698,2]
[346321761,1734889847331,-500.0,0.00013698,2]
[346321763,1734889847339,-500.0,0.00013698,2]
[346321765,1734889847350,-1695.47,0.00013698,2]
[346321767,1734889847360,-500.0,0.00013698,2]
[346321769,1734889847369,-1530.5,0.00013698,2]
[346321771,1734889847378,-657.85,0.00013698,2]
[346321773,1734889847388,-500.0,0.00013698,2]
[346321775,1734889847397,-1952.82,0.00013698,2]
[346321777,1734889847406,-500.0,0.00013698,2]
[346321779,1734889847415,-513.53,0.00013698,2]
[346321780,1734889847425,-2319.86,0.00013698,2]
[346321783,1734889847434,-509.94,0.00013698,2]
[346321785,1734889847443,-611.52,0.00013698,2]
[346321787,1734889847453,-500.0,0.00013698,2]
[346321789,1734889847462,-500.0,0.00013698,2]
[346321791,1734889847472,-500.0,0.00013698,2]
[346321793,1734889847481,-1302.45,0.00013698,2]
[346321795,1734889847491,-500.0,0.00013698,2]
[346321797,1734889847501,-515.83,0.00013698,2]
[346321799,1734889847510,-326.00814092,0.00013698,2]
[346321896,1734889992961,3460.048982,0.000139,30]
[346321898,1734890587102,1000.0,0.00022,120]
[346321899,1734890646332,1000.0,0.0002,60]
[346321900,1734890736134,-184.54916306,0.00013,13]
[346321901,1734890846096,-815.45083694,0.00013,13]
[346321902,1734890846117,-306.645,0.00013006,2]
[346321903,1734890846141,-306.645,0.0001327,2]
[346321904,1734890846163,-300.0,0.00013466,2]
[346321905,1734890846185,-4929.06118745,0.00013467,2]
[346321906,1734890972146,-305.768,0.0001327,2]
[346321907,1734891019685,485.386,0.00012688,2]
[346321951,1734891032296,-6224.1364386,0.00012688,2]
[346321953,1734891032306,-1126.9688227,0.00013332,2]
[346321956,1734891032330,-738.20142119,0.00013332,2]
[346321959,1734891032345,-2860.48558844,0.00013332,2]
[346321962,1734891032370,-657.29719887,0.00013332,2]
[346321964,1734891032384,-257.84310175,0.00013332,2]
[346321966,1734891032396,-2419.9311112,0.00013598,2]
[346321968,1734891032408,-208.10528127,0.00013598,2]
[346321970,1734891032419,-300.0,0.00013658,2]
[346321972,1734891032430,-3200.0,0.00013659,2]
[346321974,1734891032441,-500.0,0.00013697,2]
[346321976,1734891032452,-551.50986549,0.00013697,2]
[346321978,1734891032463,-257.33341576,0.00013697,2]
[346321980,1734891032473,-604.99135043,0.00013697,2]
[346321982,1734891032484,-500.0,0.00013697,2]
[346321984,1734891032494,-500.0,0.00013697,2]
[346321986,1734891032505,-500.0,0.00013697,2]
[346321988,1734891032516,-352.09548887,0.00013697,2]
[346321990,1734891032527,-294.06132696,0.00013697,2]
[346321992,1734891032538,-500.0,0.00013697,2]
[346321994,1734891032549,-648.92027861,0.00013697,2]
[346321996,1734891032560,-206.248,0.00013697,2]
[346321998,1734891032574,-151.0,0.00013698,2]
[346322000,1734891032585,-151.0,0.00013698,2]
[346322002,1734891032597,-151.0,0.00013698,2]
[346322004,1734891032612,-151.0,0.00013698,2]
[346322006,1734891032622,-151.0,0.00013698,2]
[346322008,1734891032633,-151.0,0.00013698,2]
[346322010,1734891032645,-152.469546,0.00013698,2]
[346322012,1734891032656,-500.0,0.00013698,2]
[346322014,1734891032666,-245.58863842,0.00013698,2]
[346322016,1734891032678,-500.0,0.00013698,2]
[346322018,1734891032689,-500.0,0.00013698,2]
[346322020,1734891032700,-500.0,0.00013698,2]
[346322022,1734891032710,-500.0,0.00013698,2]
[346322024,1734891032721,-756.18,0.00013698,2]
[346322026,1734891032732,-500.0,0.00013698,2]
[346322028,1734891032743,-500.0,0.00013698,2]
[346322030,1734891032753,-500.0,0.00013698,2]
[346322032,1734891032764,-255.133964,0.00013698,2]
[346322034,1734891032775,-500.0,0.00013698,2]
[346322036,1734891032787,-500.0,0.00013698,2]
[346322038,1734891032797,-927.05,0.00013698,2]
[346322040,1734891032808,-617.94,0.00013698,2]
[346322042,1734891032822,-151.0,0.00013698,2]
[346322044,1734891032832,-268.068388,0.00013698,2]
[346322046,1734891032843,-500.0,0.00013698,2]
[346322048,1734891032855,-500.0,0.00013698,2]
[346322050,1734891032866,-332.89365424,0.00013698,2]
[346322052,1734891032882,-167.10634576,0.00013698,2]
[346322054,1734891032894,-468.69072775,0.00013698,2]
[346322056,1734891032908,-31.30927225,0.00013698,2]
[346322058,1734891032919,-500.0,0.00013698,2]
[346322060,1734891032931,-151.0,0.00013698,2]
[346322062,1734891032942,-403.59772775,0.00013698,2]
[346322536,1734891038210,-8531.31633164,0.00013561,2]
[346322538,1734891038220,-96.40227225,0.00013698,2]
[346322540,1734891038230,-697.15,0.00013698,2]
[346322542,1734891038239,-500.0,0.00013698,2]
[346322544,1734891038248,-500.0,0.00013698,2]
[346322546,1734891038257,-500.0,0.00013698,2]
[346322548,1734891038266,-604.71,0.00013698,2]
[346322550,1734891038276,-500.0,0.00013698,2]
[346322582,1734891038555,-500.0,0.00013698,2]
[346322585,1734891038578,-508.12066074,0.00013698,2]
[346322588,1734891038595,-288.93316321,0.00013698,2]
[346322590,1734891038614,-213.01065203,0.00013698,2]
[346322592,1734891038624,-500.0,0.00013698,2]
[346322594,1734891038633,-344.23062816,0.00013698,2]
[346322596,1734891038645,-155.76937184,0.00013698,2]
[346322598,1734891038654,-162.72450207,0.00013698,2]
[346322850,1734891042995,-337.85993524,0.00013698,2]
[346322852,1734891043005,-500.0,0.00013698,2]
[346322854,1734891043014,-500.0,0.00013698,2]
[346322855,1734891043023,-500.0,0.00013698,2]
[346322856,1734891043032,-500.0,0.00013698,2]
[346322857,1734891043041,-500.0,0.00013698,2]
[346322858,1734891043050,-500.0,0.00013698,2]
[346322859,1734891043059,-560.78,0.00013698,2]
[346322860,1734891043068,-500.0,0.00013698,2]
[346322861,1734891043079,-500.0,0.00013698,2]
[346322862,1734891043088,-768.89,0.00013698,2]
[346322864,1734891043097,-500.0,0.00013698,2]
[346322866,1734891043106,-249.52045489,0.00013698,2]
[346322868,1734891043115,-658.38,0.00013698,2]
[346322870,1734891043124,-500.0,0.00013698,2]
[346322872,1734891043133,-168.22429131,0.00013698,2]
[346322875,1734891043161,-181.74204242,0.00013698,2]
[346322876,1734891043170,-500.0,0.00013698,2]
[346322877,1734891043179,-500.0,0.00013698,2]
[346322879,1734891043189,-500.0,0.00013698,2]
[346322881,1734891043198,-500.0,0.00013698,2]
[346322882,1734891043207,-500.0,0.00013698,2]
[346322884,1734891043216,-832.05,0.00013698,2]
[346322887,1734891043225,-500.0,0.00013698,2]
[346322890,1734891043234,-151.0,0.00013698,2]
[346322891,1734891043255,-151.0,0.00013698,2]
[346322892,1734891043264,-151.0,0.00013698,2]
[346322893,1734891043274,-500.0,0.00013698,2]
[346322895,1734891043283,-500.0,0.00013698,2]
[346322896,1734891043293,-151.0,0.00013698,2]
[346322897,1734891043302,-151.0,0.00013698,2]
[346322898,1734891043311,-500.0,0.00013698,2]
[346322899,1734891043321,-500.0,0.00013698,2]
[346322900,1734891043332,-271.04371802,0.00013698,2]
[346322901,1734891043341,-432.62673414,0.00013698,2]
[346322902,1734891043350,-500.0,0.00013698,2]
[346322903,1734891043360,-500.0,0.00013698,2]
[346322904,1734891043369,-500.0,0.00013698,2]
[346322905,1734891043379,-500.0,0.00013698,2]
[346322906,1734891043388,-500.0,0.00013698,2]
[346322907,1734891043398,-500.0,0.00013698,2]
[346322908,1734891043407,-500.0,0.00013698,2]
[346322909,1734891043416,-500.0,0.00013698,2]
[346322910,1734891043426,-500.0,0.00013698,2]
[346322911,1734891043435,-500.0,0.00013698,2]
[346322912,1734891043445,-500.0,0.00013698,2]
[346322913,1734891043454,-500.0,0.00013698,2]
[346322914,1734891043464,-500.0,0.00013698,2]
[346322915,1734891043473,-571.34,0.00013698,2]
[346322916,1734891043483,-500.0,0.00013698,2]
[346322917,1734891043493,-500.0,0.00013698,2]
[346322918,1734891043502,-500.0,0.00013698,2]
[346322919,1734891043511,-500.0,0.00013698,2]
[346322920,1734891043520,-500.0,0.00013698,2]
[346322921,1734891043529,-500.0,0.00013698,2]
[346322922,1734891043539,-500.0,0.00013698,2]
[346322923,1734891043549,-500.0,0.00013698,2]
[346322924,1734891043558,-500.0,0.00013698,2]
[346322925,1734891043567,-587.23,0.00013698,2]
[346322926,1734891043578,-500.0,0.00013698,2]
[346322927,1734891043588,-838.75,0.00013698,2]
[346322928,1734891043597,-500.0,0.00013698,2]
[346322929,1734891043611,-500.0,0.00013698,2]
[346322930,1734891043621,-816.59,0.00013698,2]
[346322931,1734891043630,-500.0,0.00013698,2]
[346322932,1734891043640,-514.55035673,0.00013698,2]
[346322933,1734891043650,-729.65,0.00013698,2]
[346322934,1734891043659,-500.0,0.00013698,2]
[346322935,1734891043669,-1127.98,0.00013698,2]
[346322936,1734891043680,-500.0,0.00013698,2]
[346322937,1734891043689,-500.0,0.00013698,2]
[346322938,1734891043699,-689.28,0.00013698,2]
[346322939,1734891043708,-500.0,0.00013698,2]
[346322940,1734891043718,-500.0,0.00013698,2]
[346322941,1734891043727,-504.45,0.00013698,2]
[346322942,1734891043737,-500.0,0.00013698,2]
[346322943,1734891043746,-345.40602296,0.00013698,2]
[346322944,1734891043756,-562.91,0.00013698,2]
[346322945,1734891043766,-500.0,0.00013698,2]
[346322946,1734891043775,-572.41638013,0.00013698,2]
[346322947,1734891043784,-500.0,0.00013698,2]
[346322948,1734891043794,-815.88,0.00013698,2]
[346322949,1734891043804,-504.88930304,0.00013698,2]
[346322950,1734891043813,-582.34,0.00013698,2]
[346322951,1734891043823,-500.0,0.00013698,2]
[346322952,1734891043833,-500.0,0.00013698,2]
[346322953,1734891043842,-500.0,0.00013698,2]
[346322954,1734891043852,-500.0,0.00013698,2]
[346322955,1734891043860,-2339.86,0.00013698,2]
[346322956,1734891043870,-500.0,0.00013698,2]
[346322957,1734891043879,-500.0,0.00013698,2]
[346322958,1734891043889,-500.0,0.00013698,2]
[346322959,1734891043898,-500.0,0.00013698,2]
[346322960,1734891043907,-500.0,0.00013698,2]
[346322961,1734891043917,-500.0,0.00013698,2]
[346322962,1734891043926,-500.0,0.00013698,2]
[346322963,1734891043935,-500.0,0.00013698,2]
[346322964,1734891043945,-500.0,0.00013698,2]
[346322965,1734891043954,-500.0,0.00013698,2]
[346322966,1734891043964,-500.0,0.00013698,2]
[346322967,1734891043973,-500.0,0.00013698,2]
[346322968,1734891043983,-1389.86,0.00013698,2]
[346322969,1734891043992,-500.0,0.00013698,2]
[346322970,1734891044001,-500.0,0.00013698,2]
[346322971,1734891044011,-500.0,0.00013698,2]
[346322972,1734891044021,-500.0,0.00013698,2]
[346322973,1734891044030,-1513.36,0.00013698,2]
[346322974,1734891044039,-151.0,0.00013698,2]
[346322975,1734891044049,-151.0,0.00013698,2]
[346322976,1734891044058,-500.0,0.00013698,2]
[346322977,1734891044068,-151.0,0.00013698,2]
[346322978,1734891044078,-753.44,0.00013698,2]
[346322979,1734891044090,-298.753466,0.00013698,2]
[346322980,1734891044100,-500.0,0.00013698,2]
[346322981,1734891044110,-500.0,0.00013698,2]
[346322982,1734891044119,-500.0,0.00013698,2]
[346322983,1734891044129,-500.0,0.00013698,2]
[346322984,1734891044138,-500.0,0.00013698,2]
[346322985,1734891044148,-517.71322676,0.00013698,2]
[346322986,1734891044157,-500.0,0.00013698,2]
[346322987,1734891044167,-500.0,0.00013698,2]
[346322988,1734891044176,-500.0,0.00013698,2]
[346322989,1734891044187,-500.0,0.00013698,2]
[346322990,1734891044196,-500.0,0.00013698,2]
[346322991,1734891044206,-1831.09,0.00013698,2]
[346322992,1734891044215,-1000.0,0.00013698,2]
[346322993,1734891044225,-265.1,0.00013698,2]
[346322994,1734891044234,-500.0,0.00013698,2]
[346322995,1734891044244,-4246.2,0.00013698,2]
[346322996,1734891044253,-500.0,0.00013698,2]
[346322997,1734891044262,-2330.4,0.00013698,2]
[346322998,1734891044271,-500.0,0.00013698,2]
[346322999,1734891044280,-345.02896929,0.00013698,2]
[346323000,1734891044348,-154.97103071,0.00013698,2]
[346323001,1734891044357,-500.0,0.00013698,2]
[346323002,1734891044366,-43.29785244,0.00013698,2]
[346323003,1734891044378,-107.70214756,0.00013698,2]
[346323004,1734891044387,-373.02025171,0.00013698,2]
[346323021,1734891046448,-139.02678287,0.00013698,2]
[346323022,1734891046458,-151.0,0.00013698,2]
[346323023,1734891046467,-151.0,0.00013698,2]
[346323024,1734891046477,-151.0,0.00013698,2]
[346323025,1734891046486,-500.0,0.00013698,2]
[346323026,1734891046495,-369.51778233,0.00013698,2]
[346323027,1734891046504,-966.853821,0.00013698,2]
[346323028,1734891046514,-966.853821,0.00013698,2]
[346323029,1734891046523,-500.0,0.00013698,2]
[346323030,1734891046532,-966.853821,0.00013698,2]
[346323031,1734891046541,-966.853821,0.00013698,2]
[346323032,1734891046551,-1468.17,0.00013698,2]
[346323033,1734891046560,-885.12,0.00013698,2]
[346323034,1734891046569,-500.0,0.00013698,2]
[346323035,1734891046582,-966.853821,0.00013698,2]
[346323036,1734891046591,-966.853821,0.00013698,2]
[346323037,1734891046601,-966.853821,0.00013698,2]
[346323038,1734891046613,-966.853821,0.00013698,2]
[346323039,1734891046622,-500.0,0.00013698,2]
[346323040,1734891046632,-1356.06,0.00013698,2]
[346323041,1734891046641,-500.0,0.00013698,2]
[346323042,1734891046653,-151.0,0.00013698,2]
[346323043,1734891046662,-151.0,0.00013698,2]
[346323044,1734891046672,-151.0,0.00013698,2]
[346323045,1734891046682,-151.0,0.00013698,2]
[346323046,1734891046691,-1886.47,0.00013698,2]
[346323047,1734891046701,-500.0,0.00013698,2]
[346323048,1734891046711,-500.31566523,0.00013698,2]
[346323049,1734891046720,-500.0,0.00013698,2]
[346323050,1734891046730,-500.0,0.00013698,2]
[346323051,1734891046739,-793.58,0.00013698,2]
[346323052,1734891046748,-601.21,0.00013698,2]
[346323053,1734891046757,-500.0,0.00013698,2]
[346323054,1734891046767,-1111.51,0.00013698,2]
[346323055,1734891046776,-509.06561681,0.00013698,2]
[346323056,1734891046787,-500.0,0.00013698,2]
[346323057,1734891046797,-500.0,0.00013698,2]
[346323058,1734891046807,-755.93,0.00013698,2]
[346323059,1734891046819,-500.0,0.00013698,2]
[346323060,1734891046835,-500.0,0.00013698,2]
[346323061,1734891046844,-500.0,0.00013698,2]
[346323062,1734891046854,-548.62,0.00013698,2]
[346323063,1734891046865,-192.820307,0.00013698,2]
[346323064,1734891046875,-192.820307,0.00013698,2]
[346323065,1734891046885,-192.820307,0.00013698,2]
[346323066,1734891046895,-192.820307,0.00013698,2]
[346323067,1734891046904,-863.58,0.00013698,2]
[346323068,1734891046914,-500.0,0.00013698,2]
[346323069,1734891046923,-500.0,0.00013698,2]
[346323070,1734891046932,-151.0,0.00013698,2]
[346323071,1734891046942,-151.0,0.00013698,2]
[346323072,1734891046951,-151.0,0.00013698,2]
[346323073,1734891046962,-151.0,0.00013698,2]
[346323074,1734891046972,-1440.69,0.00013698,2]
[346323075,1734891046982,-500.0,0.00013698,2]
[346323076,1734891046991,-500.0,0.00013698,2]
[346323077,1734891047001,-500.0,0.00013698,2]
[346323078,1734891047010,-1274.82,0.00013698,2]
[346323079,1734891047020,-802.31,0.00013698,2]
[346323080,1734891047029,-500.0,0.00013698,2]
[346323081,1734891047038,-1243.42,0.00013698,2]
[346323082,1734891047047,-500.0,0.00013698,2]
[346323083,1734891047057,-500.0,0.00013698,2]
[346323084,1734891047066,-500.0,0.00013698,2]
[346323085,1734891047075,-151.0,0.00013698,2]
[346323086,1734891047088,-500.0,0.00013698,2]
[346323087,1734891047097,-151.0,0.00013698,2]
[346323088,1734891047107,-151.0,0.00013698,2]
[346323089,1734891047116,-151.0,0.00013698,2]
[346323090,1734891047126,-182.415833,0.00013698,2]
[346323091,1734891047136,-1253.04,0.00013698,2]
[346323092,1734891047145,-500.0,0.00013698,2]
[346323093,1734891047155,-585.03,0.00013698,2]
[346323094,1734891047164,-500.0,0.00013698,2]
[346323095,1734891047174,-500.0,0.00013698,2]
[346323096,1734891047183,-500.0,0.00013698,2]
[346323097,1734891047193,-631.17,0.00013698,2]
[346323098,1734891047204,-500.0,0.00013698,2]
[346323099,1734891047214,-500.0,0.00013698,2]
[346323100,1734891047224,-1244.61,0.00013698,2]
[346323101,1734891047234,-500.0,0.00013698,2]
[346323102,1734891047244,-500.0,0.00013698,2]
[346323103,1734891047254,-500.0,0.00013698,2]
[346323104,1734891047265,-500.0,0.00013698,2]
[346323105,1734891047275,-500.0,0.00013698,2]
[346323106,1734891047285,-1631.02,0.00013698,2]
[346323107,1734891047295,-500.0,0.00013698,2]
[346323108,1734891047305,-500.0,0.00013698,2]
[346323109,1734891047316,-500.0,0.00013698,2]
[346323110,1734891047326,-500.0,0.00013698,2]
[346323111,1734891047340,-711.8,0.00013698,2]
[346323112,1734891047350,-500.0,0.00013698,2]
[346323113,1734891047360,-500.0,0.00013698,2]
[346323114,1734891047370,-500.0,0.00013698,2]
[346323115,1734891047379,-500.0,0.00013698,2]
[346323116,1734891047389,-500.0,0.00013698,2]
[346323117,1734891047399,-500.0,0.00013698,2]
[346323118,1734891047408,-500.0,0.00013698,2]
[346323119,1734891047418,-2525.87,0.00013698,2]
[346323120,1734891047428,-500.0,0.00013698,2]
[346323121,1734891047438,-208.68883515,0.00013698,2]
[346323122,1734891047448,-599.44,0.00013698,2]
[346323123,1734891047458,-500.0,0.00013698,2]
[346323124,1734891047468,-1834.52,0.00013698,2]
[346323125,1734891047477,-500.0,0.00013698,2]
[346323126,1734891047487,-500.0,0.00013698,2]
[346323127,1734891047496,-796.37,0.00013698,2]
[346323128,1734891047506,-500.0,0.00013698,2]
[346323129,1734891047515,-500.0,0.00013698,2]
[346323130,1734891047524,-151.0,0.00013698,2]
[346323131,1734891047534,-151.0,0.00013698,2]
[346323132,1734891047544,-151.0,0.00013698,2]
[346323133,1734891047553,-151.0,0.00013698,2]
[346323134,1734891047562,-2105.02,0.00013698,2]
[346323135,1734891047572,-500.0,0.00013698,2]
[346323136,1734891047584,-1654.39,0.00013698,2]
[346323137,1734891047594,-500.0,0.00013698,2]
[346323138,1734891047606,-500.0,0.00013698,2]
[346323139,1734891047616,-2459.9,0.00013698,2]
[346323140,1734891047626,-661.68,0.00013698,2]
[346323141,1734891047635,-500.0,0.00013698,2]
[346323142,1734891047646,-500.0,0.00013698,2]
[346323143,1734891047656,-500.0,0.00013698,2]
[346323144,1734891047666,-505.50692279,0.00013698,2]
[346323145,1734891047676,-500.0,0.00013698,2]
[346323146,1734891047688,-500.0,0.00013698,2]
[346323147,1734891047697,-785.81,0.00013698,2]
[346323148,1734891047707,-192.65438712,0.00013698,2]
[346323149,1734891047716,-151.0,0.00013698,2]
[346323150,1734891047726,-151.0,0.00013698,2]
[346323151,1734891047735,-151.0,0.00013698,2]
[346323152,1734891047745,-500.0,0.00013698,2]
[346323153,1734891047754,-500.0,0.00013698,2]
[346323154,1734891047764,-500.0,0.00013698,2]
[346323155,1734891047774,-500.0,0.00013698,2]
[346323156,1734891047783,-500.0,0.00013698,2]
[346323157,1734891047795,-500.0,0.00013698,2]
[346323158,1734891047805,-500.0,0.00013698,2]
[346323159,1734891047815,-961.49,0.00013698,2]
[346323160,1734891047824,-500.0,0.00013698,2]
[346323161,1734891047835,-500.0,0.00013698,2]
[346323162,1734891047846,-500.0,0.00013698,2]
[346323163,1734891047855,-500.0,0.00013698,2]
[346323164,1734891047865,-500.0,0.00013698,2]
[346323165,1734891047875,-500.0,0.00013698,2]
[346323166,1734891047886,-500.0,0.00013698,2]
[346323167,1734891047895,-500.0,0.00013698,2]
[346323168,1734891047906,-500.0,0.00013698,2]
[346323169,1734891047915,-580.9706661,0.00013698,2]
[346323170,1734891047925,-1362.93,0.00013698,2]
[346323171,1734891047934,-500.0,0.00013698,2]
[346323172,1734891047944,-1045.57,0.00013698,2]
[346323173,1734891047954,-694.71,0.00013698,2]
[346323174,1734891047963,-1667.15,0.00013698,2]
[346323175,1734891047972,-745.7833656,0.00013698,2]
[346323177,1734891943132,-225.69095873,0.0001292,2]
[346323178,1734892053126,-506.3413837,0.00012481,2]
[346323179,1734892053152,-476.60205874,0.00012607,2]
[346323181,1734892146081,-4044.48457966,0.00012607,2]
[346323182,1734892146106,-2169.96002034,0.0001292,2]
[346323183,1734892165280,-238.81904748,0.0001292,2]
[346323184,1734892165303,-327.639,0.0001302,2]
[346323187,1734892223242,313.99,0.0001302,2]
[346323217,1734892236388,-300.0,0.0001351,2]
[346323218,1734892236398,-300.0,0.0001351,2]
[346323219,1734892236408,-3220.7287516,0.00013511,2]
[346323220,1734892236424,-610.97286328,0.00013511,2]
[346323221,1734892236506,-1514.06704627,0.00013511,2]
[346323264,1734892238278,-3604.17145771,0.00013511,2]
[346323281,1734892238426,-1619.91720154,0.00013511,2]
[346323283,1734892238436,-206.7114874,0.00013561,2]
[346323285,1734892238445,-163.83000227,0.00013598,2]
[346323287,1734892238454,-151.0,0.00013697,2]
[346323289,1734892238463,-206.17,0.00013697,2]
[346323291,1734892238472,-266.77506028,0.00013697,2]
[346323293,1734892238481,-500.0,0.00013697,2]
[346323295,1734892238490,-500.0,0.00013697,2]
[346323297,1734892238499,-265.28237312,0.00013697,2]
[346323299,1734892238508,-500.0,0.00013697,2]
[346323301,1734892238517,-500.0,0.00013697,2]
[346323303,1734892238526,-500.0,0.00013697,2]
[346323305,1734892238535,-500.0,0.00013697,2]
[346323307,1734892238545,-393.91582461,0.00013697,2]
[346323309,1734892238554,-500.0,0.00013697,2]
[346323311,1734892238564,-403.51194529,0.00013697,2]
[346323313,1734892238574,-294.36107537,0.00013697,2]
[346323315,1734892238583,-151.0,0.00013698,2]
[346323317,1734892238592,-151.0,0.00013698,2]
[346323319,1734892238601,-151.0,0.00013698,2]
[346323321,1734892238611,-151.0,0.00013698,2]
[346323323,1734892238620,-252.958266,0.00013698,2]
[346323325,1734892238629,-151.0,0.00013698,2]
[346323327,1734892238639,-151.0,0.00013698,2]
[346323329,1734892238648,-151.0,0.00013698,2]
[346323330,1734892238657,-151.0,0.00013698,2]
[346323331,1734892238666,-151.0,0.00013698,2]
[346323332,1734892238675,-151.0,0.00013698,2]
[346323333,1734892238684,-151.0,0.00013698,2]
[346323334,1734892238693,-151.0,0.00013698,2]
[346323335,1734892238702,-151.0,0.00013698,2]